Department Family,Entity,Payment Date,Expense Type,Expense Area,Supplier,Transaction Number,Amount,Invoice Description,Postal Code,"Capital, Admin or Programme"
Food Standards Agency,Food Standards Agency,02/10/2012,Project Programme expenditure,Delivery,C E F A S,8002185,"22,422.00",PO 407991 407983 410113 407793 SHELLFISH SAMPLE ANALYSIS JUL 2012,NR33 0HT,Programme
Food Standards Agency,Food Standards Agency,02/10/2012,Project Programme expenditure,Delivery,C E F A S,8002185,"21,913.00",PO 407991 407983 410113 407793 SHELLFISH SAMPLE ANALYSIS JUL 2012,NR33 0HT,Programme
Food Standards Agency,Food Standards Agency,02/10/2012,Project Programme expenditure,Delivery,C E F A S,8002185,"16,254.00",PO 407991 407983 410113 407793 SHELLFISH SAMPLE ANALYSIS JUL 2012,NR33 0HT,Programme
Food Standards Agency,Food Standards Agency,02/10/2012,Project Programme expenditure,Delivery,C E F A S,8002185,"15,040.00",PO 407991 407983 410113 407793 SHELLFISH SAMPLE ANALYSIS JUL 2012,NR33 0HT,Programme
Food Standards Agency,Food Standards Agency,02/10/2012,Project Programme expenditure,Delivery,C E F A S,8002185,"10,496.00",PO 407991 407983 410113 407793 SHELLFISH SAMPLE ANALYSIS JUL 2012,NR33 0HT,Programme
Food Standards Agency,Food Standards Agency,02/10/2012,Programme Evidence & Research Expenditure,Contaminants Policy & Strategy Unit,Food & Environment Research Agency,F0024680,"58,921.00",PO 400846 PAYMENT FOR PROJECT MODELLING INTRIM REPORT DETAILING INTITAL GROWTH CURVES,YO41 1LZ,Programme
Food Standards Agency,Food Standards Agency,02/10/2012,Rates/contrib in lieu of rates,Security & Estates,London Borough Of Camden,68351658OCT12,"152,004.00",PO 407405 68351658 BUSINESS RATES OCT 12,WC1H 8NH,Admin
Food Standards Agency,Food Standards Agency,04/10/2012,ASD support services,IT Service Delivery,Capita Secure Information Solutions Ltd,92646591,"257,657.42",PO 410080 AUG 2012 SERVICE PROVISION,SN14 0TW,Admin
Food Standards Agency,Food Standards Agency,08/10/2012,Programme Evidence & Research Expenditure,Delivery,Staffordshire County Council,SBA67,"25,685.00",SELF BILL FOOD + FEED INSPECTIONS 1/10/11-31/3/12,ST16 2NF,Programme
Food Standards Agency,Food Standards Agency,08/10/2012,Programme Evidence & Research Expenditure,Delivery,Staffordshire County Council,SBA67,"25,685.00",SELF BILL FOOD + FEED INSPECTIONS 1/10/11-31/3/12,ST16 2NF,Programme
Food Standards Agency,Food Standards Agency,08/10/2012,Programme Evidence & Research Expenditure,Delivery,Staffordshire County Council,SBA68,"30,800.00",SELF BILL FOOD + FEED INSPECTIONS 1/4/11-30/9/11,ST16 2NF,Programme
Food Standards Agency,Food Standards Agency,08/10/2012,Programme Evidence & Research Expenditure,Delivery,Staffordshire County Council,SBA68,"30,800.00",SELF BILL FOOD + FEED INSPECTIONS 1/4/11-30/9/11,ST16 2NF,Programme
Food Standards Agency,Food Standards Agency,08/10/2012,Service charges,Security & Estates,G4s Integrated Services (Uk) Ltd,M8886,"26,929.85",PO 407801 SERVICE PROVISION ON CONTRACT REF PAU229,S81 7QF,Admin
Food Standards Agency,Food Standards Agency,08/10/2012,Service charges,Security & Estates,G4s Integrated Services (Uk) Ltd,M8886,"15,613.20",PO 407801 SERVICE PROVISION ON CONTRACT REF PAU229,S81 7QF,Admin
Food Standards Agency,Food Standards Agency,08/10/2012,Service charges,Security & Estates,G4s Integrated Services (Uk) Ltd,M8886,"2,842.41",PO 407801 SERVICE PROVISION ON CONTRACT REF PAU229,S81 7QF,Admin
Food Standards Agency,Food Standards Agency,08/10/2012,Office machinery: hire,Security & Estates,G4s Integrated Services (Uk) Ltd,M8886,"3,244.00",PO 407801 SERVICE PROVISION ON CONTRACT REF PAU229,S81 7QF,Admin
Food Standards Agency,Food Standards Agency,08/10/2012,Security,Security & Estates,G4s Integrated Services (Uk) Ltd,M8886,"18,167.70",PO 407801 SERVICE PROVISION ON CONTRACT REF PAU229,S81 7QF,Admin
Food Standards Agency,Food Standards Agency,10/10/2012,Subsistence UK,Area 1 Scotland - Cluster 11,Booking Services International Ltd,225747431,80,CONSOL INVOICE FOR HOTELS/CONFERENCES 13th-28th SEPT 12,TA1 2PF,Programme
Food Standards Agency,Food Standards Agency,10/10/2012,Travel UK ,Area 1 Scotland - Cluster 12,Capita Business Travel Ltd,LI460668,38.1,CONSOL INVOICE FOR RAIL & OTHER TRAVEL FSA 15th-30th SEPT 2012,DE21 6BF,Programme
Food Standards Agency,Food Standards Agency,10/10/2012,Subsistence UK,Area 1 Scotland - Cluster 12,Booking Services International Ltd,225747431,75,CONSOL INVOICE FOR HOTELS/CONFERENCES 13th-28th SEPT 12,TA1 2PF,Programme
Food Standards Agency,Food Standards Agency,10/10/2012,Conference and meeting facilities including accommodation,Area 1 Scotland - Cluster 12,Booking Services International Ltd,225747431,208,CONSOL INVOICE FOR HOTELS/CONFERENCES 13th-28th SEPT 12,TA1 2PF,Programme
Food Standards Agency,Food Standards Agency,10/10/2012,Travel UK ,Area 1 Scotland - Cluster 15,Capita Business Travel Ltd,LI460668,389.34,CONSOL INVOICE FOR RAIL & OTHER TRAVEL FSA 15th-30th SEPT 2012,DE21 6BF,Programme
Food Standards Agency,Food Standards Agency,10/10/2012,Subsistence UK,Area 1 Scotland - Cluster 15,Booking Services International Ltd,225747431,65,CONSOL INVOICE FOR HOTELS/CONFERENCES 13th-28th SEPT 12,TA1 2PF,Programme
Food Standards Agency,Food Standards Agency,10/10/2012,Subsistence UK,Area 1 Scotland - Cluster 15,Booking Services International Ltd,225747431,95,CONSOL INVOICE FOR HOTELS/CONFERENCES 13th-28th SEPT 12,TA1 2PF,Programme
Food Standards Agency,Food Standards Agency,10/10/2012,Travel UK ,Area 2 Wales - Cluster 21,Capita Business Travel Ltd,LI460668,339.6,CONSOL INVOICE FOR RAIL & OTHER TRAVEL FSA 15th-30th SEPT 2012,DE21 6BF,Programme
Food Standards Agency,Food Standards Agency,10/10/2012,Subsistence UK,Area 2 Wales - Cluster 21,Booking Services International Ltd,225747431,130,CONSOL INVOICE FOR HOTELS/CONFERENCES 13th-28th SEPT 12,TA1 2PF,Programme
Food Standards Agency,Food Standards Agency,10/10/2012,Travel UK ,Area 2 Wales - Cluster 23,Capita Business Travel Ltd,LI460668,235.1,CONSOL INVOICE FOR RAIL & OTHER TRAVEL FSA 15th-30th SEPT 2012,DE21 6BF,Programme
Food Standards Agency,Food Standards Agency,10/10/2012,Travel UK ,Area 3 North West England - Cluster 33,Capita Business Travel Ltd,LI460668,189.6,CONSOL INVOICE FOR RAIL & OTHER TRAVEL FSA 15th-30th SEPT 2012,DE21 6BF,Programme
Food Standards Agency,Food Standards Agency,10/10/2012,Subsistence UK,Area 3 North West England - Cluster 33,Booking Services International Ltd,225747431,174.9,CONSOL INVOICE FOR HOTELS/CONFERENCES 13th-28th SEPT 12,TA1 2PF,Programme
Food Standards Agency,Food Standards Agency,10/10/2012,Travel UK ,Area 3 North West England - Cluster 34,Capita Business Travel Ltd,LI460668,240.3,CONSOL INVOICE FOR RAIL & OTHER TRAVEL FSA 15th-30th SEPT 2012,DE21 6BF,Programme
Food Standards Agency,Food Standards Agency,10/10/2012,Subsistence UK,Area 3 North West England - Cluster 34,Booking Services International Ltd,225747431,210,CONSOL INVOICE FOR HOTELS/CONFERENCES 13th-28th SEPT 12,TA1 2PF,Programme
Food Standards Agency,Food Standards Agency,10/10/2012,Conference and meeting facilities including accommodation,Area 3 North West England - Cluster 35,Booking Services International Ltd,225747431,59.75,CONSOL INVOICE FOR HOTELS/CONFERENCES 13th-28th SEPT 12,TA1 2PF,Programme
Food Standards Agency,Food Standards Agency,10/10/2012,Subsistence UK,Area 3 North West England - Cluster 36,Booking Services International Ltd,225747431,447,CONSOL INVOICE FOR HOTELS/CONFERENCES 13th-28th SEPT 12,TA1 2PF,Programme
Food Standards Agency,Food Standards Agency,10/10/2012,International Travel,Area 4 North East England - Cluster 44,Capita Business Travel Ltd,LI460668,794.3,CONSOL INVOICE FOR RAIL & OTHER TRAVEL FSA 15th-30th SEPT 2012,DE21 6BF,Programme
Food Standards Agency,Food Standards Agency,10/10/2012,Subsistence UK,Area 4 North East England - Cluster 44,Booking Services International Ltd,225747431,115,CONSOL INVOICE FOR HOTELS/CONFERENCES 13th-28th SEPT 12,TA1 2PF,Programme
Food Standards Agency,Food Standards Agency,10/10/2012,Travel UK ,Area 4 North East England - Cluster 45,Capita Business Travel Ltd,LI460668,137.4,CONSOL INVOICE FOR RAIL & OTHER TRAVEL FSA 15th-30th SEPT 2012,DE21 6BF,Programme
Food Standards Agency,Food Standards Agency,10/10/2012,Subsistence UK,Area 4 North East England - Cluster 46,Booking Services International Ltd,225747431,144,CONSOL INVOICE FOR HOTELS/CONFERENCES 13th-28th SEPT 12,TA1 2PF,Programme
Food Standards Agency,Food Standards Agency,10/10/2012,Subsistence UK,Area 4 North East England - Cluster 46,Booking Services International Ltd,225747431,92,CONSOL INVOICE FOR HOTELS/CONFERENCES 13th-28th SEPT 12,TA1 2PF,Programme
Food Standards Agency,Food Standards Agency,10/10/2012,Travel UK ,Area 4 North East England - Cluster 48,Capita Business Travel Ltd,LI460668,93.3,CONSOL INVOICE FOR RAIL & OTHER TRAVEL FSA 15th-30th SEPT 2012,DE21 6BF,Programme
Food Standards Agency,Food Standards Agency,10/10/2012,Travel UK ,Area 5 South West England - Cluster 51,Capita Business Travel Ltd,LI460668,94.7,CONSOL INVOICE FOR RAIL & OTHER TRAVEL FSA 15th-30th SEPT 2012,DE21 6BF,Programme
Food Standards Agency,Food Standards Agency,10/10/2012,Subsistence UK,Area 5 South West England - Cluster 51,Booking Services International Ltd,225747431,77,CONSOL INVOICE FOR HOTELS/CONFERENCES 13th-28th SEPT 12,TA1 2PF,Programme
Food Standards Agency,Food Standards Agency,10/10/2012,Subsistence UK,Area 5 South West England - Cluster 53,Booking Services International Ltd,225747431,74.25,CONSOL INVOICE FOR HOTELS/CONFERENCES 13th-28th SEPT 12,TA1 2PF,Programme
Food Standards Agency,Food Standards Agency,10/10/2012,Travel UK ,Area 5 South West England - Cluster 54,Capita Business Travel Ltd,LI460668,-114.1,CONSOL INVOICE FOR RAIL & OTHER TRAVEL FSA 15th-30th SEPT 2012,DE21 6BF,Programme
Food Standards Agency,Food Standards Agency,10/10/2012,Subsistence UK,Area 5 South West England - Cluster 54,Booking Services International Ltd,225747431,82,CONSOL INVOICE FOR HOTELS/CONFERENCES 13th-28th SEPT 12,TA1 2PF,Programme
Food Standards Agency,Food Standards Agency,10/10/2012,Conference and meeting facilities including accommodation,Area 5 South West England - Cluster 55,Booking Services International Ltd,225747431,75,CONSOL INVOICE FOR HOTELS/CONFERENCES 13th-28th SEPT 12,TA1 2PF,Programme
Food Standards Agency,Food Standards Agency,10/10/2012,Travel UK ,Area 5 South West England - Cluster 57,Capita Business Travel Ltd,LI460668,204.2,CONSOL INVOICE FOR RAIL & OTHER TRAVEL FSA 15th-30th SEPT 2012,DE21 6BF,Programme
Food Standards Agency,Food Standards Agency,10/10/2012,Subsistence UK,Area 5 South West England - Cluster 57,Booking Services International Ltd,225747431,100,CONSOL INVOICE FOR HOTELS/CONFERENCES 13th-28th SEPT 12,TA1 2PF,Programme
Food Standards Agency,Food Standards Agency,10/10/2012,Travel UK ,Area 6 South East England - Cluster 61,Capita Business Travel Ltd,LI460668,405.2,CONSOL INVOICE FOR RAIL & OTHER TRAVEL FSA 15th-30th SEPT 2012,DE21 6BF,Programme
Food Standards Agency,Food Standards Agency,10/10/2012,Subsistence UK,Area 6 South East England - Cluster 63,Booking Services International Ltd,225747431,213,CONSOL INVOICE FOR HOTELS/CONFERENCES 13th-28th SEPT 12,TA1 2PF,Programme
Food Standards Agency,Food Standards Agency,10/10/2012,Travel UK ,Area 6 South East England - Cluster 64,Capita Business Travel Ltd,LI460668,29.3,CONSOL INVOICE FOR RAIL & OTHER TRAVEL FSA 15th-30th SEPT 2012,DE21 6BF,Programme
Food Standards Agency,Food Standards Agency,10/10/2012,Subsistence UK,Area 6 South East England - Cluster 64,Booking Services International Ltd,225747431,334,CONSOL INVOICE FOR HOTELS/CONFERENCES 13th-28th SEPT 12,TA1 2PF,Programme
Food Standards Agency,Food Standards Agency,10/10/2012,Travel UK ,Area 6 South East England - Cluster 65,Capita Business Travel Ltd,LI460668,247.3,CONSOL INVOICE FOR RAIL & OTHER TRAVEL FSA 15th-30th SEPT 2012,DE21 6BF,Programme
Food Standards Agency,Food Standards Agency,10/10/2012,Subsistence UK,Area 6 South East England - Cluster 65,Booking Services International Ltd,225747431,198,CONSOL INVOICE FOR HOTELS/CONFERENCES 13th-28th SEPT 12,TA1 2PF,Programme
Food Standards Agency,Food Standards Agency,10/10/2012,Travel UK ,Area 6 South East England - Cluster 66,Capita Business Travel Ltd,LI460668,359.2,CONSOL INVOICE FOR RAIL & OTHER TRAVEL FSA 15th-30th SEPT 2012,DE21 6BF,Programme
Food Standards Agency,Food Standards Agency,10/10/2012,Travel UK ,Chief Executive & Private Office,Capita Business Travel Ltd,LI460668,-59.4,CONSOL INVOICE FOR RAIL & OTHER TRAVEL FSA 15th-30th SEPT 2012,DE21 6BF,Admin
Food Standards Agency,Food Standards Agency,10/10/2012,Travel UK ,Chair & Deputy Chair,Capita Business Travel Ltd,LI460668,378.1,CONSOL INVOICE FOR RAIL & OTHER TRAVEL FSA 15th-30th SEPT 2012,DE21 6BF,Admin
Food Standards Agency,Food Standards Agency,10/10/2012,Travel UK ,FSA Board,Capita Business Travel Ltd,LI460668,264.54,CONSOL INVOICE FOR RAIL & OTHER TRAVEL FSA 15th-30th SEPT 2012,DE21 6BF,Admin
Food Standards Agency,Food Standards Agency,10/10/2012,Travel UK ,Legal Branch A,Capita Business Travel Ltd,LI460668,126.6,CONSOL INVOICE FOR RAIL & OTHER TRAVEL FSA 15th-30th SEPT 2012,DE21 6BF,Admin
Food Standards Agency,Food Standards Agency,10/10/2012,Travel UK ,Investigations,Capita Business Travel Ltd,LI460668,435.1,CONSOL INVOICE FOR RAIL & OTHER TRAVEL FSA 15th-30th SEPT 2012,DE21 6BF,Admin
Food Standards Agency,Food Standards Agency,10/10/2012,Car hire expenses (short term),Investigations,Capita Business Travel Ltd,LI460668,283.36,CONSOL INVOICE FOR RAIL & OTHER TRAVEL FSA 15th-30th SEPT 2012,DE21 6BF,Admin
Food Standards Agency,Food Standards Agency,10/10/2012,Subsistence UK,Investigations,Booking Services International Ltd,225747431,140,CONSOL INVOICE FOR HOTELS/CONFERENCES 13th-28th SEPT 12,TA1 2PF,Admin
Food Standards Agency,Food Standards Agency,10/10/2012,Travel UK ,Chief Scientist,Capita Business Travel Ltd,LI460668,165.2,CONSOL INVOICE FOR RAIL & OTHER TRAVEL FSA 15th-30th SEPT 2012,DE21 6BF,Admin
Food Standards Agency,Food Standards Agency,10/10/2012,Project Programme expenditure,Analysis & Research Branch,T N S Uk Ltd,260112492,"118,919.00",PO 406948 COMPLETION OF MAIN STAGE FIELDWORK,W5 1UA,Programme
Food Standards Agency,Food Standards Agency,10/10/2012,Travel UK ,Analysis & Research Branch,Capita Business Travel Ltd,LI460668,363.52,CONSOL INVOICE FOR RAIL & OTHER TRAVEL FSA 15th-30th SEPT 2012,DE21 6BF,Admin
Food Standards Agency,Food Standards Agency,10/10/2012,International Travel,Analysis & Research Branch,Capita Business Travel Ltd,LI460668,430.85,CONSOL INVOICE FOR RAIL & OTHER TRAVEL FSA 15th-30th SEPT 2012,DE21 6BF,Admin
Food Standards Agency,Food Standards Agency,10/10/2012,Car hire expenses (short term),Analysis & Research Branch,Capita Business Travel Ltd,LI460668,2.26,CONSOL INVOICE FOR RAIL & OTHER TRAVEL FSA 15th-30th SEPT 2012,DE21 6BF,Admin
Food Standards Agency,Food Standards Agency,10/10/2012,Travel UK ,Comms Directors Office,Capita Business Travel Ltd,LI460668,"1,018.40",CONSOL INVOICE FOR RAIL & OTHER TRAVEL FSA 15th-30th SEPT 2012,DE21 6BF,Admin
Food Standards Agency,Food Standards Agency,10/10/2012,International Travel,Comms Directors Office,Capita Business Travel Ltd,LI460668,287.6,CONSOL INVOICE FOR RAIL & OTHER TRAVEL FSA 15th-30th SEPT 2012,DE21 6BF,Admin
Food Standards Agency,Food Standards Agency,10/10/2012,Subsistence UK,Comms Directors Office,Booking Services International Ltd,225747431,475,CONSOL INVOICE FOR HOTELS/CONFERENCES 13th-28th SEPT 12,TA1 2PF,Admin
Food Standards Agency,Food Standards Agency,10/10/2012,Travel UK ,FSA Operations Director & Support,Capita Business Travel Ltd,LI460668,"1,089.16",CONSOL INVOICE FOR RAIL & OTHER TRAVEL FSA 15th-30th SEPT 2012,DE21 6BF,Programme
Food Standards Agency,Food Standards Agency,10/10/2012,Travel UK ,Approvals & Veterinary Advice,Capita Business Travel Ltd,LI460668,"3,828.84",CONSOL INVOICE FOR RAIL & OTHER TRAVEL FSA 15th-30th SEPT 2012,DE21 6BF,Programme
Food Standards Agency,Food Standards Agency,10/10/2012,International Travel,Approvals & Veterinary Advice,Capita Business Travel Ltd,LI460668,207.5,CONSOL INVOICE FOR RAIL & OTHER TRAVEL FSA 15th-30th SEPT 2012,DE21 6BF,Programme
Food Standards Agency,Food Standards Agency,10/10/2012,Car hire expenses (short term),Approvals & Veterinary Advice,Capita Business Travel Ltd,LI460668,194.33,CONSOL INVOICE FOR RAIL & OTHER TRAVEL FSA 15th-30th SEPT 2012,DE21 6BF,Programme
Food Standards Agency,Food Standards Agency,10/10/2012,Subsistence UK,Approvals & Veterinary Advice,Booking Services International Ltd,225747431,"1,190.20",CONSOL INVOICE FOR HOTELS/CONFERENCES 13th-28th SEPT 12,TA1 2PF,Programme
Food Standards Agency,Food Standards Agency,10/10/2012,Travel UK ,LAALD HoD & Support,Capita Business Travel Ltd,LI460668,"4,136.95",CONSOL INVOICE FOR RAIL & OTHER TRAVEL FSA 15th-30th SEPT 2012,DE21 6BF,Admin
Food Standards Agency,Food Standards Agency,10/10/2012,Subsistence UK,LAALD HoD & Support,Booking Services International Ltd,225747431,"1,650.60",CONSOL INVOICE FOR HOTELS/CONFERENCES 13th-28th SEPT 12,TA1 2PF,Admin
Food Standards Agency,Food Standards Agency,10/10/2012,Conference and meeting facilities including accommodation,LAALD HoD & Support,Booking Services International Ltd,225747431,177.48,CONSOL INVOICE FOR HOTELS/CONFERENCES 13th-28th SEPT 12,TA1 2PF,Admin
Food Standards Agency,Food Standards Agency,10/10/2012,Travel UK ,Incidents & Food Fraud,Capita Business Travel Ltd,LI460668,632.44,CONSOL INVOICE FOR RAIL & OTHER TRAVEL FSA 15th-30th SEPT 2012,DE21 6BF,Admin
Food Standards Agency,Food Standards Agency,10/10/2012,Travel UK ,Delivery,Capita Business Travel Ltd,LI460668,"2,719.29",CONSOL INVOICE FOR RAIL & OTHER TRAVEL FSA 15th-30th SEPT 2012,DE21 6BF,Admin
Food Standards Agency,Food Standards Agency,10/10/2012,Subsistence UK,Delivery,Booking Services International Ltd,225747431,"5,090.80",CONSOL INVOICE FOR HOTELS/CONFERENCES 13th-28th SEPT 12,TA1 2PF,Admin
Food Standards Agency,Food Standards Agency,10/10/2012,Conference and meeting facilities including accommodation,Delivery,Booking Services International Ltd,225747431,"3,182.00",CONSOL INVOICE FOR HOTELS/CONFERENCES 13th-28th SEPT 12,TA1 2PF,Admin
Food Standards Agency,Food Standards Agency,10/10/2012,Project Programme expenditure,Enforcement Policy,Bristol City Council,2511594126,"25,648.89",PO 403706 FHRS FRANT FUNDING BALANCE PAYABLE,BS1 5TR,Programme
Food Standards Agency,Food Standards Agency,10/10/2012,Travel UK ,Official Controls & Enforcement Strategy,Capita Business Travel Ltd,LI460668,117.8,CONSOL INVOICE FOR RAIL & OTHER TRAVEL FSA 15th-30th SEPT 2012,DE21 6BF,Admin
Food Standards Agency,Food Standards Agency,10/10/2012,Travel UK ,Operational Delivery,Capita Business Travel Ltd,LI460668,"3,750.20",CONSOL INVOICE FOR RAIL & OTHER TRAVEL FSA 15th-30th SEPT 2012,DE21 6BF,Programme
Food Standards Agency,Food Standards Agency,10/10/2012,International Travel,Operational Delivery,Capita Business Travel Ltd,LI460668,319.74,CONSOL INVOICE FOR RAIL & OTHER TRAVEL FSA 15th-30th SEPT 2012,DE21 6BF,Programme
Food Standards Agency,Food Standards Agency,10/10/2012,Car hire expenses (short term),Operational Delivery,Capita Business Travel Ltd,LI460668,257.54,CONSOL INVOICE FOR RAIL & OTHER TRAVEL FSA 15th-30th SEPT 2012,DE21 6BF,Programme
Food Standards Agency,Food Standards Agency,10/10/2012,Subsistence UK,Operational Delivery,Booking Services International Ltd,225747431,80,CONSOL INVOICE FOR HOTELS/CONFERENCES 13th-28th SEPT 12,TA1 2PF,Programme
Food Standards Agency,Food Standards Agency,10/10/2012,Subsistence UK,Operational Delivery,Booking Services International Ltd,225747431,"3,971.40",CONSOL INVOICE FOR HOTELS/CONFERENCES 13th-28th SEPT 12,TA1 2PF,Programme
Food Standards Agency,Food Standards Agency,10/10/2012,Conference and meeting facilities including accommodation,Operational Delivery,Booking Services International Ltd,225747431,238.75,CONSOL INVOICE FOR HOTELS/CONFERENCES 13th-28th SEPT 12,TA1 2PF,Programme
Food Standards Agency,Food Standards Agency,10/10/2012,Travel UK ,Wine Standards,Capita Business Travel Ltd,LI460668,107.6,CONSOL INVOICE FOR RAIL & OTHER TRAVEL FSA 15th-30th SEPT 2012,DE21 6BF,Programme
Food Standards Agency,Food Standards Agency,10/10/2012,Subsistence UK,Wine Standards,Booking Services International Ltd,225747431,"1,152.00",CONSOL INVOICE FOR HOTELS/CONFERENCES 13th-28th SEPT 12,TA1 2PF,Programme
Food Standards Agency,Food Standards Agency,10/10/2012,Travel UK ,Central Operations Hub,Capita Business Travel Ltd,LI460668,"1,360.10",CONSOL INVOICE FOR RAIL & OTHER TRAVEL FSA 15th-30th SEPT 2012,DE21 6BF,Programme
Food Standards Agency,Food Standards Agency,10/10/2012,Subsistence UK,Central Operations Hub,Booking Services International Ltd,225747431,240,CONSOL INVOICE FOR HOTELS/CONFERENCES 13th-28th SEPT 12,TA1 2PF,Programme
Food Standards Agency,Food Standards Agency,10/10/2012,Travel UK ,Chemical Risk Assessment Unit,Capita Business Travel Ltd,LI460668,315.2,CONSOL INVOICE FOR RAIL & OTHER TRAVEL FSA 15th-30th SEPT 2012,DE21 6BF,Admin
Food Standards Agency,Food Standards Agency,10/10/2012,International Travel,Chemical Risk Assessment Unit,Capita Business Travel Ltd,LI460668,256.1,CONSOL INVOICE FOR RAIL & OTHER TRAVEL FSA 15th-30th SEPT 2012,DE21 6BF,Admin
Food Standards Agency,Food Standards Agency,10/10/2012,Subsistence UK,Chemical Risk Assessment Unit,Booking Services International Ltd,225747431,227.6,CONSOL INVOICE FOR HOTELS/CONFERENCES 13th-28th SEPT 12,TA1 2PF,Admin
Food Standards Agency,Food Standards Agency,10/10/2012,Travel UK ,Contaminants Policy & Strategy Unit,Capita Business Travel Ltd,LI460668,332.8,CONSOL INVOICE FOR RAIL & OTHER TRAVEL FSA 15th-30th SEPT 2012,DE21 6BF,Admin
Food Standards Agency,Food Standards Agency,10/10/2012,International Travel,Contaminants Policy & Strategy Unit,Capita Business Travel Ltd,LI460668,437.5,CONSOL INVOICE FOR RAIL & OTHER TRAVEL FSA 15th-30th SEPT 2012,DE21 6BF,Admin
Food Standards Agency,Food Standards Agency,10/10/2012,International Travel,Contaminants Policy & Strategy Unit,Capita Business Travel Ltd,LI460668,306.9,CONSOL INVOICE FOR RAIL & OTHER TRAVEL FSA 15th-30th SEPT 2012,DE21 6BF,Admin
Food Standards Agency,Food Standards Agency,10/10/2012,Car hire expenses (short term),Contaminants Policy & Strategy Unit,Capita Business Travel Ltd,LI460668,117.22,CONSOL INVOICE FOR RAIL & OTHER TRAVEL FSA 15th-30th SEPT 2012,DE21 6BF,Admin
Food Standards Agency,Food Standards Agency,10/10/2012,International Travel,Novel Food Unit,Capita Business Travel Ltd,LI460668,252.5,CONSOL INVOICE FOR RAIL & OTHER TRAVEL FSA 15th-30th SEPT 2012,DE21 6BF,Admin
Food Standards Agency,Food Standards Agency,10/10/2012,Subsistence UK,Novel Food Unit,Booking Services International Ltd,225747431,418.8,CONSOL INVOICE FOR HOTELS/CONFERENCES 13th-28th SEPT 12,TA1 2PF,Admin
Food Standards Agency,Food Standards Agency,10/10/2012,Travel UK ,Hygiene & Microbiology Division HoD,Capita Business Travel Ltd,LI460668,493.76,CONSOL INVOICE FOR RAIL & OTHER TRAVEL FSA 15th-30th SEPT 2012,DE21 6BF,Admin
Food Standards Agency,Food Standards Agency,10/10/2012,International Travel,Hygiene & Microbiology Division HoD,Capita Business Travel Ltd,LI460668,172.3,CONSOL INVOICE FOR RAIL & OTHER TRAVEL FSA 15th-30th SEPT 2012,DE21 6BF,Admin
Food Standards Agency,Food Standards Agency,10/10/2012,Subsistence UK,Hygiene & Microbiology Division HoD,Booking Services International Ltd,225747431,117,CONSOL INVOICE FOR HOTELS/CONFERENCES 13th-28th SEPT 12,TA1 2PF,Admin
Food Standards Agency,Food Standards Agency,10/10/2012,International Travel,EU Regulatory Reform Branch,Capita Business Travel Ltd,LI460668,218.75,CONSOL INVOICE FOR RAIL & OTHER TRAVEL FSA 15th-30th SEPT 2012,DE21 6BF,Admin
Food Standards Agency,Food Standards Agency,10/10/2012,Travel UK ,Meat & Hygiene & TSE Policy Branch,Capita Business Travel Ltd,LI460668,55.8,CONSOL INVOICE FOR RAIL & OTHER TRAVEL FSA 15th-30th SEPT 2012,DE21 6BF,Admin
Food Standards Agency,Food Standards Agency,10/10/2012,Subsistence UK,Foodborne Diseases Branch,Booking Services International Ltd,225747431,85,CONSOL INVOICE FOR HOTELS/CONFERENCES 13th-28th SEPT 12,TA1 2PF,Admin
Food Standards Agency,Food Standards Agency,10/10/2012,Travel UK ,Animal Feed Branch,Capita Business Travel Ltd,LI460668,359.4,CONSOL INVOICE FOR RAIL & OTHER TRAVEL FSA 15th-30th SEPT 2012,DE21 6BF,Admin
Food Standards Agency,Food Standards Agency,10/10/2012,Subsistence UK,Animal Feed Branch,Booking Services International Ltd,225747431,779.6,CONSOL INVOICE FOR HOTELS/CONFERENCES 13th-28th SEPT 12,TA1 2PF,Admin
Food Standards Agency,Food Standards Agency,10/10/2012,Conference and meeting facilities including accommodation,Animal Feed Branch,Booking Services International Ltd,225747431,258.85,CONSOL INVOICE FOR HOTELS/CONFERENCES 13th-28th SEPT 12,TA1 2PF,Admin
Food Standards Agency,Food Standards Agency,10/10/2012,Subsistence UK,Nutrition Science Head of Unit,Booking Services International Ltd,225747431,70,CONSOL INVOICE FOR HOTELS/CONFERENCES 13th-28th SEPT 12,TA1 2PF,Admin
Food Standards Agency,Food Standards Agency,10/10/2012,International Travel,Additives,Capita Business Travel Ltd,LI460668,248.75,CONSOL INVOICE FOR RAIL & OTHER TRAVEL FSA 15th-30th SEPT 2012,DE21 6BF,Admin
Food Standards Agency,Food Standards Agency,10/10/2012,Travel UK ,Food Policy Strategy HoD,Capita Business Travel Ltd,LI460668,"1,836.13",CONSOL INVOICE FOR RAIL & OTHER TRAVEL FSA 15th-30th SEPT 2012,DE21 6BF,Admin
Food Standards Agency,Food Standards Agency,10/10/2012,Subsistence UK,Food Policy Strategy HoD,Booking Services International Ltd,225747431,572.4,CONSOL INVOICE FOR HOTELS/CONFERENCES 13th-28th SEPT 12,TA1 2PF,Admin
Food Standards Agency,Food Standards Agency,10/10/2012,International Travel,European & International Strategy,Capita Business Travel Ltd,LI460668,724.51,CONSOL INVOICE FOR RAIL & OTHER TRAVEL FSA 15th-30th SEPT 2012,DE21 6BF,Admin
Food Standards Agency,Food Standards Agency,10/10/2012,Travel UK ,Planning and Performance,Capita Business Travel Ltd,LI460668,"1,338.30",CONSOL INVOICE FOR RAIL & OTHER TRAVEL FSA 15th-30th SEPT 2012,DE21 6BF,Admin
Food Standards Agency,Food Standards Agency,10/10/2012,Subsistence UK,Planning and Performance,Booking Services International Ltd,225747431,574.8,CONSOL INVOICE FOR HOTELS/CONFERENCES 13th-28th SEPT 12,TA1 2PF,Admin
Food Standards Agency,Food Standards Agency,10/10/2012,Travel UK ,Finance Director & Branch,Capita Business Travel Ltd,LI460668,"1,550.15",CONSOL INVOICE FOR RAIL & OTHER TRAVEL FSA 15th-30th SEPT 2012,DE21 6BF,Admin
Food Standards Agency,Food Standards Agency,10/10/2012,Subsistence UK,Finance Director & Branch,Booking Services International Ltd,225747431,147.6,CONSOL INVOICE FOR HOTELS/CONFERENCES 13th-28th SEPT 12,TA1 2PF,Admin
Food Standards Agency,Food Standards Agency,10/10/2012,Travel UK ,HR,Capita Business Travel Ltd,LI460668,"3,874.24",CONSOL INVOICE FOR RAIL & OTHER TRAVEL FSA 15th-30th SEPT 2012,DE21 6BF,Admin
Food Standards Agency,Food Standards Agency,10/10/2012,Car hire expenses (short term),HR,Capita Business Travel Ltd,LI460668,151.94,CONSOL INVOICE FOR RAIL & OTHER TRAVEL FSA 15th-30th SEPT 2012,DE21 6BF,Admin
Food Standards Agency,Food Standards Agency,10/10/2012,Subsistence UK,HR,Booking Services International Ltd,225747431,135.6,CONSOL INVOICE FOR HOTELS/CONFERENCES 13th-28th SEPT 12,TA1 2PF,Admin
Food Standards Agency,Food Standards Agency,10/10/2012,Subsistence UK,HR,Booking Services International Ltd,225747431,"1,056.60",CONSOL INVOICE FOR HOTELS/CONFERENCES 13th-28th SEPT 12,TA1 2PF,Admin
Food Standards Agency,Food Standards Agency,10/10/2012,Travel UK ,Procurement,Capita Business Travel Ltd,LI460668,"1,400.87",CONSOL INVOICE FOR RAIL & OTHER TRAVEL FSA 15th-30th SEPT 2012,DE21 6BF,Admin
Food Standards Agency,Food Standards Agency,10/10/2012,Subsistence UK,Procurement,Booking Services International Ltd,225747431,459.2,CONSOL INVOICE FOR HOTELS/CONFERENCES 13th-28th SEPT 12,TA1 2PF,Admin
Food Standards Agency,Food Standards Agency,10/10/2012,Travel UK ,IT HoD,Capita Business Travel Ltd,LI460668,"1,974.90",CONSOL INVOICE FOR RAIL & OTHER TRAVEL FSA 15th-30th SEPT 2012,DE21 6BF,Admin
Food Standards Agency,Food Standards Agency,10/10/2012,Subsistence UK,IT HoD,Booking Services International Ltd,225747431,70,CONSOL INVOICE FOR HOTELS/CONFERENCES 13th-28th SEPT 12,TA1 2PF,Admin
Food Standards Agency,Food Standards Agency,10/10/2012,Travel UK ,Security & Estates,Capita Business Travel Ltd,LI460668,290.4,CONSOL INVOICE FOR RAIL & OTHER TRAVEL FSA 15th-30th SEPT 2012,DE21 6BF,Admin
Food Standards Agency,Food Standards Agency,10/10/2012,Subsistence UK,Security & Estates,Booking Services International Ltd,225747431,147.6,CONSOL INVOICE FOR HOTELS/CONFERENCES 13th-28th SEPT 12,TA1 2PF,Admin
Food Standards Agency,Food Standards Agency,10/10/2012,Travel UK ,Internal Audit,Capita Business Travel Ltd,LI460668,676.7,CONSOL INVOICE FOR RAIL & OTHER TRAVEL FSA 15th-30th SEPT 2012,DE21 6BF,Admin
Food Standards Agency,Food Standards Agency,10/10/2012,Subsistence UK,Internal Audit,Booking Services International Ltd,225747431,596.1,CONSOL INVOICE FOR HOTELS/CONFERENCES 13th-28th SEPT 12,TA1 2PF,Admin
Food Standards Agency,Food Standards Agency,10/10/2012,Subsistence UK,FSA Ops Cluster 2,Booking Services International Ltd,225747431,170,CONSOL INVOICE FOR HOTELS/CONFERENCES 13th-28th SEPT 12,TA1 2PF,Programme
Food Standards Agency,Food Standards Agency,10/10/2012,Subsistence UK,FSA Ops Cluster 5,Booking Services International Ltd,225747431,170,CONSOL INVOICE FOR HOTELS/CONFERENCES 13th-28th SEPT 12,TA1 2PF,Programme
Food Standards Agency,Food Standards Agency,12/10/2012,IT hardware/software purchases ,IT Service Delivery,Capita Secure Information Solutions Ltd,92649579,"21,525.30",PO 409676 FSA-112 QUOTE FOR 30 LAPTOPS,SN14 0TW,Admin
Food Standards Agency,Food Standards Agency,12/10/2012,IT hardware/software purchases ,IT Service Delivery,Capita Secure Information Solutions Ltd,92649579,"4,305.06",PO 409676 FSA-112 QUOTE FOR 30 LAPTOPS,SN14 0TW,Admin
Food Standards Agency,Food Standards Agency,12/10/2012,IT hardware/software purchases ,IT Service Delivery,Capita Secure Information Solutions Ltd,92649579,12,PO 409676 FSA-112 QUOTE FOR 30 LAPTOPS,SN14 0TW,Admin
Food Standards Agency,Food Standards Agency,12/10/2012,IT hardware/software purchases ,IT Service Delivery,Capita Secure Information Solutions Ltd,92649579,2.4,PO 409676 FSA-112 QUOTE FOR 30 LAPTOPS,SN14 0TW,Admin
Food Standards Agency,Food Standards Agency,16/10/2012,Project Programme expenditure,Analysis & Research Branch,C E F A S,8002258,"23,078.40",PO 409509 C3193 JUL-SEP 12/13,NR33 0HT,Programme
Food Standards Agency,Food Standards Agency,16/10/2012,Fixed Assets Additions,Incidents & Food Fraud,S A S Software Ltd,UK1201614,"29,700.00",PO 409058 9 USERS OF PATRIARCH SOFTWARE 15/7/12-14/7/13,SL7 2EB,Admin
Food Standards Agency,Food Standards Agency,16/10/2012,Fixed Assets Additions,Incidents & Food Fraud,S A S Software Ltd,UK1201614,"5,940.00",PO 409058 9 USERS OF PATRIARCH SOFTWARE 15/7/12-14/7/13,SL7 2EB,Admin
Food Standards Agency,Food Standards Agency,16/10/2012,Project Programme expenditure,Delivery,C E F A S,8002256,"26,584.00",PO 408718 QTR 2 1/7/12-30/9/12 INSPECTION OF SHELLFISH PLANTS,NR33 0HT,Programme
Food Standards Agency,Food Standards Agency,16/10/2012,Project Programme expenditure,Delivery,NSF-CMI Ltd,5026515,"26,017.00",PO 408190 SEPTEMBER MANAGEMENT FEE,OX29 8SJ,Programme
Food Standards Agency,Food Standards Agency,16/10/2012,Project Programme expenditure,Delivery,Williams Lea Ltd,FSAWE12090004,"23,994.13",PO 408437 AUGUST WAREHOUSING SGD00711,W2 6LG,Programme
Food Standards Agency,Food Standards Agency,16/10/2012,Project Programme expenditure,Enforcement Policy,Transparencydata Ltd,1484,"22,380.00",PO 407576 HOSTING: SOTD SERVICE ,HP18 9AA,Programme
Food Standards Agency,Food Standards Agency,16/10/2012,Project Programme expenditure,Enforcement Policy,Transparencydata Ltd,1484,"22,380.00",PO 407576 HOSTING: SOTD SERVICE ,HP18 9AA,Programme
Food Standards Agency,Food Standards Agency,16/10/2012,Project Programme expenditure,Enforcement Policy,Transparencydata Ltd,1484,"4,476.00",PO 407576 HOSTING: SOTD SERVICE ,HP18 9AA,Programme
Food Standards Agency,Food Standards Agency,16/10/2012,Project Programme expenditure,Enforcement Policy,Transparencydata Ltd,1484,"4,476.00",PO 407576 HOSTING: SOTD SERVICE ,HP18 9AA,Programme
Food Standards Agency,Food Standards Agency,16/10/2012,Project Programme expenditure,Enforcement Policy,Transparencydata Ltd,1484,10,PO 407576 HOSTING: SOTD SERVICE ,HP18 9AA,Programme
Food Standards Agency,Food Standards Agency,16/10/2012,Project Programme expenditure,Enforcement Policy,Transparencydata Ltd,1484,10,PO 407576 HOSTING: SOTD SERVICE ,HP18 9AA,Programme
Food Standards Agency,Food Standards Agency,16/10/2012,Project Programme expenditure,Enforcement Policy,Transparencydata Ltd,1484,2,PO 407576 HOSTING: SOTD SERVICE ,HP18 9AA,Programme
Food Standards Agency,Food Standards Agency,16/10/2012,Project Programme expenditure,Enforcement Policy,Transparencydata Ltd,1484,2,PO 407576 HOSTING: SOTD SERVICE ,HP18 9AA,Programme
Food Standards Agency,Food Standards Agency,16/10/2012,Project Programme expenditure,Contaminants Policy & Strategy Unit,Animal Health and Veterinary Laboratories Agency,5000017853,"60,529.00",PO 400807 LAB SURVEILLANCE - REPORTABLE DISEASES & ZOONOSES,YO1 7PX,Programme
Food Standards Agency,Food Standards Agency,16/10/2012,Programme Evidence & Research Expenditure,Food Production Branch,B B S R C,14000,"175,000.00",PO 406059 4TH CLAIM BB/I0246711,SN2 1FF,Programme
Food Standards Agency,Food Standards Agency,16/10/2012,Telecomms-data networks & call charges,IT Service Delivery,Global Crossing (UK) Telecommunications Ltd,80300117,"43,503.12",PO 410050 GOVERNMENT IPVPN 1/4/12-30/6/12,RG24 8NA,Admin
Food Standards Agency,Food Standards Agency,16/10/2012,Telecomms-data networks & call charges,IT Service Delivery,Global Crossing (UK) Telecommunications Ltd,80300117,"8,700.62",PO 410050 GOVERNMENT IPVPN 1/4/12-30/6/12,RG24 8NA,Admin
Food Standards Agency,Food Standards Agency,18/10/2012,Project Programme expenditure,Delivery,NSF-CMI Ltd,5025987,"20,940.00",PO 408190 AUGUST 2012 MANAGMENT FEE- AUG COACHING VISITS,OX29 8SJ,Programme
Food Standards Agency,Food Standards Agency,18/10/2012,Telecomms-data networks & call charges,IT Service Delivery,Global Crossing (UK) Telecommunications Ltd,80299822,"43,503.12",PO 410300 MTS LAN DATA CHGS FROM 1/1/13 TO 31/3/12,RG24 8NA,Admin
Food Standards Agency,Food Standards Agency,18/10/2012,Telecomms-data networks & call charges,IT Service Delivery,Global Crossing (UK) Telecommunications Ltd,80299822,"8,700.62",PO 410300 MTS LAN DATA CHGS FROM 1/1/13 TO 31/3/12,RG24 8NA,Admin
Food Standards Agency,Food Standards Agency,18/10/2012,IT Software Licences,IT Service Delivery,Trustmarque Solutions Ltd,2179165,"37,930.32",PO 410251 FROM 1/12/12 TO 30/11/13 ANNUAL IBM SUBSCRIPTION & SUPPORT FOR TIVOLIL/LOTUS DOMINO,YO32 9GZ,Admin
Food Standards Agency,Food Standards Agency,18/10/2012,IT Software Licences,IT Service Delivery,Trustmarque Solutions Ltd,2179165,"7,586.06",PO 410251 FROM 1/12/12 TO 30/11/13 ANNUAL IBM SUBSCRIPTION & SUPPORT FOR TIVOLIL/LOTUS DOMINO,YO32 9GZ,Admin
Food Standards Agency,Food Standards Agency,18/10/2012,IT Development projects,IT Service Delivery,Capita Secure Information Solutions Ltd,92638543,"91,035.00",PO 409881 ICT TRAINING + PROJ. MANAGEMENT JUL 12,SN14 0TW,Admin
Food Standards Agency,Food Standards Agency,18/10/2012,IT Development projects,IT Service Delivery,Capita Secure Information Solutions Ltd,92638550,"91,035.00",PO 409881 ICT TRAINING + PROJ. MANAGEMENT AUG 12,SN14 0TW,Admin
Food Standards Agency,Food Standards Agency,22/10/2012,Project Programme expenditure,Comms Directors Office,GovDelivery. Inc,SIN002270,"27,528.00",SIN002270 MANAGEMENT FEE GOVDELIVERY DIGITAL 23/5/12 12 MONTHS FROM LAUNCH,55102,Programme
Food Standards Agency,Food Standards Agency,22/10/2012,Programme Evidence & Research Expenditure,Delivery,Gfk NOP Ltd,8272003053,"25,000.00",PO 409535 FOOD SAFETY DURING OLYMPIC GAMES REPORT ON CONDUCT,SE1 9UL,Programme
Food Standards Agency,Food Standards Agency,22/10/2012,Project Programme expenditure,Contaminants Policy & Strategy Unit,C E F A S,8002312,"200,766.00",PO 408473 CHANNEL ISLANDS ELEMENT JUL-SEP 12,NR33 0HT,Programme
Food Standards Agency,Food Standards Agency,22/10/2012,Project Programme expenditure,Contaminants Policy & Strategy Unit,C E F A S,8002312,"40,153.20",PO 408473 CHANNEL ISLANDS ELEMENT JUL-SEP 12,NR33 0HT,Programme
Food Standards Agency,Food Standards Agency,22/10/2012,Programme Evidence & Research Expenditure,Food Production Branch,Medical Research Council,32434,"70,000.00",PO 409511 ESEI PHASE 2 G1100799/1-MC_UM_AE02_E0001-12/13,SN2 1FF,Programme
Food Standards Agency,Food Standards Agency,22/10/2012,Telecomms-data networks & call charges,IT Service Delivery,Global Crossing (UK) Telecommunications Ltd,80295816,"39,723.84",PO 409204 HANDSETS AND SAPS 1/1/12-31/3/12,RG24 8NA,Admin
Food Standards Agency,Food Standards Agency,22/10/2012,Telecomms-data networks & call charges,IT Service Delivery,Global Crossing (UK) Telecommunications Ltd,80295816,"7,944.77",PO 409204 HANDSETS AND SAPS 1/1/12-31/3/12,RG24 8NA,Admin
Food Standards Agency,Food Standards Agency,22/10/2012,Telecomms-data networks & call charges,IT Service Delivery,Global Crossing (UK) Telecommunications Ltd,80302385,"39,952.57",PO 410301 HANDS SETS & SAP CHGS FROM 1/4/12 TO 30/6/12,RG24 8NA,Admin
Food Standards Agency,Food Standards Agency,22/10/2012,Telecomms-data networks & call charges,IT Service Delivery,Global Crossing (UK) Telecommunications Ltd,80302385,"7,990.51",PO 410301 HANDS SETS & SAP CHGS FROM 1/4/12 TO 30/6/12,RG24 8NA,Admin
Food Standards Agency,Food Standards Agency,22/10/2012,Utilities,Security & Estates,E D F Energy,148,"25,436.31",PO 407776 ELECTRICITY BILL FROM1-30/9/12,PL3 5XQ,Admin
Food Standards Agency,Food Standards Agency,22/10/2012,Utilities,Security & Estates,E D F Energy,148,"5,087.26",PO 407776 ELECTRICITY BILL FROM1-30/9/12,PL3 5XQ,Admin
Food Standards Agency,Food Standards Agency,26/10/2012,Travel UK ,Area 1 Scotland - Cluster 12,Capita Business Travel Ltd,LI467055,133.4,FSA TRAVEL CHGS FROM 28th SEPT to 12th OCT,DE21 6BF,Programme
Food Standards Agency,Food Standards Agency,26/10/2012,Travel UK ,Area 1 Scotland - Cluster 15,Capita Business Travel Ltd,LI467055,197.5,FSA TRAVEL CHGS FROM 28th SEPT to 12th OCT,DE21 6BF,Programme
Food Standards Agency,Food Standards Agency,26/10/2012,Travel UK ,Area 2 Wales - Cluster 21,Capita Business Travel Ltd,LI467055,89.8,FSA TRAVEL CHGS FROM 28th SEPT to 12th OCT,DE21 6BF,Programme
Food Standards Agency,Food Standards Agency,26/10/2012,Subsistence UK,Area 2 Wales - Cluster 21,Booking Services International Ltd,226056441,135,FSA CONF/HOTEL CHGS FROM 29th SEPT to 12th OCT,TA1 2PF,Programme
Food Standards Agency,Food Standards Agency,26/10/2012,Subsistence UK,Area 2 Wales - Cluster 22,Booking Services International Ltd,226056441,154,FSA CONF/HOTEL CHGS FROM 29th SEPT to 12th OCT,TA1 2PF,Programme
Food Standards Agency,Food Standards Agency,26/10/2012,Subsistence UK,Area 2 Wales - Cluster 23,Booking Services International Ltd,226056441,206,FSA CONF/HOTEL CHGS FROM 29th SEPT to 12th OCT,TA1 2PF,Programme
Food Standards Agency,Food Standards Agency,26/10/2012,Subsistence UK,Area 3 North West England - Cluster 31,Booking Services International Ltd,226056441,140,FSA CONF/HOTEL CHGS FROM 29th SEPT to 12th OCT,TA1 2PF,Programme
Food Standards Agency,Food Standards Agency,26/10/2012,Subsistence UK,Area 3 North West England - Cluster 32,Booking Services International Ltd,226056441,70,FSA CONF/HOTEL CHGS FROM 29th SEPT to 12th OCT,TA1 2PF,Programme
Food Standards Agency,Food Standards Agency,26/10/2012,Subsistence UK,Area 3 North West England - Cluster 33,Booking Services International Ltd,226056441,608,FSA CONF/HOTEL CHGS FROM 29th SEPT to 12th OCT,TA1 2PF,Programme
Food Standards Agency,Food Standards Agency,26/10/2012,Travel UK ,Area 3 North West England - Cluster 34,Capita Business Travel Ltd,LI467055,125.8,FSA TRAVEL CHGS FROM 28th SEPT to 12th OCT,DE21 6BF,Programme
Food Standards Agency,Food Standards Agency,26/10/2012,Subsistence UK,Area 3 North West England - Cluster 34,Booking Services International Ltd,226056441,448.9,FSA CONF/HOTEL CHGS FROM 29th SEPT to 12th OCT,TA1 2PF,Programme
Food Standards Agency,Food Standards Agency,26/10/2012,Subsistence UK,Area 3 North West England - Cluster 35,Booking Services International Ltd,226056441,330,FSA CONF/HOTEL CHGS FROM 29th SEPT to 12th OCT,TA1 2PF,Programme
Food Standards Agency,Food Standards Agency,26/10/2012,Travel UK ,Area 4 North East England - Cluster 41,Capita Business Travel Ltd,LI467055,50.4,FSA TRAVEL CHGS FROM 28th SEPT to 12th OCT,DE21 6BF,Programme
Food Standards Agency,Food Standards Agency,26/10/2012,Travel UK ,Area 4 North East England - Cluster 46,Capita Business Travel Ltd,LI467055,50.2,FSA TRAVEL CHGS FROM 28th SEPT to 12th OCT,DE21 6BF,Programme
Food Standards Agency,Food Standards Agency,26/10/2012,Subsistence UK,Area 4 North East England - Cluster 46,Booking Services International Ltd,226056441,140,FSA CONF/HOTEL CHGS FROM 29th SEPT to 12th OCT,TA1 2PF,Programme
Food Standards Agency,Food Standards Agency,26/10/2012,Subsistence UK,Area 4 North East England - Cluster 47,Booking Services International Ltd,226056441,70,FSA CONF/HOTEL CHGS FROM 29th SEPT to 12th OCT,TA1 2PF,Programme
Food Standards Agency,Food Standards Agency,26/10/2012,Travel UK ,Area 4 North East England - Cluster 48,Capita Business Travel Ltd,LI467055,134.6,FSA TRAVEL CHGS FROM 28th SEPT to 12th OCT,DE21 6BF,Programme
Food Standards Agency,Food Standards Agency,26/10/2012,Subsistence UK,Area 4 North East England - Cluster 48,Booking Services International Ltd,226056441,70,FSA CONF/HOTEL CHGS FROM 29th SEPT to 12th OCT,TA1 2PF,Programme
Food Standards Agency,Food Standards Agency,26/10/2012,Travel UK ,Area 5 South West England - Cluster 51,Capita Business Travel Ltd,LI467055,93.4,FSA TRAVEL CHGS FROM 28th SEPT to 12th OCT,DE21 6BF,Programme
Food Standards Agency,Food Standards Agency,26/10/2012,Travel UK ,Area 5 South West England - Cluster 52,Capita Business Travel Ltd,LI467055,33.4,FSA TRAVEL CHGS FROM 28th SEPT to 12th OCT,DE21 6BF,Programme
Food Standards Agency,Food Standards Agency,26/10/2012,Subsistence UK,Area 5 South West England - Cluster 54,Booking Services International Ltd,226056441,83,FSA CONF/HOTEL CHGS FROM 29th SEPT to 12th OCT,TA1 2PF,Programme
Food Standards Agency,Food Standards Agency,26/10/2012,Travel UK ,Area 5 South West England - Cluster 55,Capita Business Travel Ltd,LI467055,129,FSA TRAVEL CHGS FROM 28th SEPT to 12th OCT,DE21 6BF,Programme
Food Standards Agency,Food Standards Agency,26/10/2012,Travel UK ,Area 5 South West England - Cluster 56,Capita Business Travel Ltd,LI467055,250.5,FSA TRAVEL CHGS FROM 28th SEPT to 12th OCT,DE21 6BF,Programme
Food Standards Agency,Food Standards Agency,26/10/2012,Subsistence UK,Area 5 South West England - Cluster 56,Booking Services International Ltd,226056441,773.16,FSA CONF/HOTEL CHGS FROM 29th SEPT to 12th OCT,TA1 2PF,Programme
Food Standards Agency,Food Standards Agency,26/10/2012,Travel UK ,Area 6 South East England - Cluster 61,Capita Business Travel Ltd,LI467055,60.9,FSA TRAVEL CHGS FROM 28th SEPT to 12th OCT,DE21 6BF,Programme
Food Standards Agency,Food Standards Agency,26/10/2012,Travel UK ,Area 6 South East England - Cluster 62,Capita Business Travel Ltd,LI467055,210.4,FSA TRAVEL CHGS FROM 28th SEPT to 12th OCT,DE21 6BF,Programme
Food Standards Agency,Food Standards Agency,26/10/2012,Subsistence UK,Area 6 South East England - Cluster 62,Booking Services International Ltd,226056441,70,FSA CONF/HOTEL CHGS FROM 29th SEPT to 12th OCT,TA1 2PF,Programme
Food Standards Agency,Food Standards Agency,26/10/2012,Travel UK ,Area 6 South East England - Cluster 64,Capita Business Travel Ltd,LI467055,229.9,FSA TRAVEL CHGS FROM 28th SEPT to 12th OCT,DE21 6BF,Programme
Food Standards Agency,Food Standards Agency,26/10/2012,Subsistence UK,Area 6 South East England - Cluster 64,Booking Services International Ltd,226056441,221.2,FSA CONF/HOTEL CHGS FROM 29th SEPT to 12th OCT,TA1 2PF,Programme
Food Standards Agency,Food Standards Agency,26/10/2012,Conference and meeting facilities including accommodation,Area 6 South East England - Cluster 65,Booking Services International Ltd,226056441,392.15,FSA CONF/HOTEL CHGS FROM 29th SEPT to 12th OCT,TA1 2PF,Programme
Food Standards Agency,Food Standards Agency,26/10/2012,Travel UK ,Area 6 South East England - Cluster 66,Capita Business Travel Ltd,LI467055,39.7,FSA TRAVEL CHGS FROM 28th SEPT to 12th OCT,DE21 6BF,Programme
Food Standards Agency,Food Standards Agency,26/10/2012,Subsistence UK,Area 6 South East England - Cluster 66,Booking Services International Ltd,226056441,144,FSA CONF/HOTEL CHGS FROM 29th SEPT to 12th OCT,TA1 2PF,Programme
Food Standards Agency,Food Standards Agency,26/10/2012,Travel UK ,Chief Executive & Private Office,Capita Business Travel Ltd,LI467055,586.2,FSA TRAVEL CHGS FROM 28th SEPT to 12th OCT,DE21 6BF,Admin
Food Standards Agency,Food Standards Agency,26/10/2012,Travel UK ,Chair & Deputy Chair,Capita Business Travel Ltd,LI467055,344.1,FSA TRAVEL CHGS FROM 28th SEPT to 12th OCT,DE21 6BF,Admin
Food Standards Agency,Food Standards Agency,26/10/2012,Travel UK ,FSA Board,Capita Business Travel Ltd,LI467055,387.6,FSA TRAVEL CHGS FROM 28th SEPT to 12th OCT,DE21 6BF,Admin
Food Standards Agency,Food Standards Agency,26/10/2012,Subsistence UK,FSA Board,Booking Services International Ltd,226056441,123.6,FSA CONF/HOTEL CHGS FROM 29th SEPT to 12th OCT,TA1 2PF,Admin
Food Standards Agency,Food Standards Agency,26/10/2012,Travel UK ,Investigations,Capita Business Travel Ltd,LI467055,148.9,FSA TRAVEL CHGS FROM 28th SEPT to 12th OCT,DE21 6BF,Admin
Food Standards Agency,Food Standards Agency,26/10/2012,Subsistence UK,Investigations,Booking Services International Ltd,226056441,298.8,FSA CONF/HOTEL CHGS FROM 29th SEPT to 12th OCT,TA1 2PF,Admin
Food Standards Agency,Food Standards Agency,26/10/2012,Travel UK ,Chief Scientist,Capita Business Travel Ltd,LI467055,153.6,FSA TRAVEL CHGS FROM 28th SEPT to 12th OCT,DE21 6BF,Admin
Food Standards Agency,Food Standards Agency,26/10/2012,Subsistence UK,Chief Scientist,Booking Services International Ltd,226056441,308.67,FSA CONF/HOTEL CHGS FROM 29th SEPT to 12th OCT,TA1 2PF,Admin
Food Standards Agency,Food Standards Agency,26/10/2012,Travel UK ,Analysis & Research Branch,Capita Business Travel Ltd,LI467055,461.83,FSA TRAVEL CHGS FROM 28th SEPT to 12th OCT,DE21 6BF,Admin
Food Standards Agency,Food Standards Agency,26/10/2012,International Travel,Analysis & Research Branch,Capita Business Travel Ltd,LI467055,264.75,FSA TRAVEL CHGS FROM 28th SEPT to 12th OCT,DE21 6BF,Admin
Food Standards Agency,Food Standards Agency,26/10/2012,Subsistence UK,Analysis & Research Branch,Booking Services International Ltd,226056441,193.32,FSA CONF/HOTEL CHGS FROM 29th SEPT to 12th OCT,TA1 2PF,Admin
Food Standards Agency,Food Standards Agency,26/10/2012,Travel UK ,Comms Directors Office,Capita Business Travel Ltd,LI467055,"1,493.87",FSA TRAVEL CHGS FROM 28th SEPT to 12th OCT,DE21 6BF,Admin
Food Standards Agency,Food Standards Agency,26/10/2012,Subsistence UK,Comms Directors Office,Booking Services International Ltd,226056441,592.8,FSA CONF/HOTEL CHGS FROM 29th SEPT to 12th OCT,TA1 2PF,Admin
Food Standards Agency,Food Standards Agency,26/10/2012,Conference and meeting facilities including accommodation,Comms Directors Office,Booking Services International Ltd,226056441,"3,240.90",FSA CONF/HOTEL CHGS FROM 29th SEPT to 12th OCT,TA1 2PF,Admin
Food Standards Agency,Food Standards Agency,26/10/2012,Travel UK ,FSA Operations Director & Support,Capita Business Travel Ltd,LI467055,"1,146.19",FSA TRAVEL CHGS FROM 28th SEPT to 12th OCT,DE21 6BF,Programme
Food Standards Agency,Food Standards Agency,26/10/2012,Travel UK ,Approvals & Veterinary Advice,Capita Business Travel Ltd,LI467055,"2,597.09",FSA TRAVEL CHGS FROM 28th SEPT to 12th OCT,DE21 6BF,Programme
Food Standards Agency,Food Standards Agency,26/10/2012,International Travel,Approvals & Veterinary Advice,Capita Business Travel Ltd,LI467055,110.68,FSA TRAVEL CHGS FROM 28th SEPT to 12th OCT,DE21 6BF,Programme
Food Standards Agency,Food Standards Agency,26/10/2012,Subsistence UK,Approvals & Veterinary Advice,Booking Services International Ltd,226056441,"1,052.40",FSA CONF/HOTEL CHGS FROM 29th SEPT to 12th OCT,TA1 2PF,Programme
Food Standards Agency,Food Standards Agency,26/10/2012,Travel UK ,LAALD HoD & Support,Capita Business Travel Ltd,LI467055,"4,189.75",FSA TRAVEL CHGS FROM 28th SEPT to 12th OCT,DE21 6BF,Admin
Food Standards Agency,Food Standards Agency,26/10/2012,Subsistence UK,LAALD HoD & Support,Booking Services International Ltd,226056441,"1,587.97",FSA CONF/HOTEL CHGS FROM 29th SEPT to 12th OCT,TA1 2PF,Admin
Food Standards Agency,Food Standards Agency,26/10/2012,Travel UK ,Incidents & Food Fraud,Capita Business Travel Ltd,LI467055,155.6,FSA TRAVEL CHGS FROM 28th SEPT to 12th OCT,DE21 6BF,Admin
Food Standards Agency,Food Standards Agency,26/10/2012,Subsistence UK,Incidents & Food Fraud,Booking Services International Ltd,226056441,97.25,FSA CONF/HOTEL CHGS FROM 29th SEPT to 12th OCT,TA1 2PF,Admin
Food Standards Agency,Food Standards Agency,26/10/2012,Travel UK ,Delivery,Capita Business Travel Ltd,LI467055,"3,328.29",FSA TRAVEL CHGS FROM 28th SEPT to 12th OCT,DE21 6BF,Admin
Food Standards Agency,Food Standards Agency,26/10/2012,Subsistence UK,Delivery,Booking Services International Ltd,226056441,"1,244.80",FSA CONF/HOTEL CHGS FROM 29th SEPT to 12th OCT,TA1 2PF,Admin
Food Standards Agency,Food Standards Agency,26/10/2012,Conference and meeting facilities including accommodation,Delivery,Booking Services International Ltd,226056441,992.25,FSA CONF/HOTEL CHGS FROM 29th SEPT to 12th OCT,TA1 2PF,Admin
Food Standards Agency,Food Standards Agency,26/10/2012,Travel UK ,Enforcement Policy,Capita Business Travel Ltd,LI467055,135.6,FSA TRAVEL CHGS FROM 28th SEPT to 12th OCT,DE21 6BF,Admin
Food Standards Agency,Food Standards Agency,26/10/2012,Travel UK ,Official Controls & Enforcement Strategy,Capita Business Travel Ltd,LI467055,"1,009.00",FSA TRAVEL CHGS FROM 28th SEPT to 12th OCT,DE21 6BF,Admin
Food Standards Agency,Food Standards Agency,26/10/2012,Subsistence UK,Official Controls & Enforcement Strategy,Booking Services International Ltd,226056441,150,FSA CONF/HOTEL CHGS FROM 29th SEPT to 12th OCT,TA1 2PF,Admin
Food Standards Agency,Food Standards Agency,26/10/2012,Travel UK ,Operational Delivery,Capita Business Travel Ltd,LI467055,"3,319.45",FSA TRAVEL CHGS FROM 28th SEPT to 12th OCT,DE21 6BF,Programme
Food Standards Agency,Food Standards Agency,26/10/2012,Car hire expenses (short term),Operational Delivery,Capita Business Travel Ltd,LI467055,92.77,FSA TRAVEL CHGS FROM 28th SEPT to 12th OCT,DE21 6BF,Programme
Food Standards Agency,Food Standards Agency,26/10/2012,Subsistence UK,Operational Delivery,Booking Services International Ltd,226056441,"3,431.36",FSA CONF/HOTEL CHGS FROM 29th SEPT to 12th OCT,TA1 2PF,Programme
Food Standards Agency,Food Standards Agency,26/10/2012,Conference and meeting facilities including accommodation,Operational Delivery,Booking Services International Ltd,226056441,975.1,FSA CONF/HOTEL CHGS FROM 29th SEPT to 12th OCT,TA1 2PF,Programme
Food Standards Agency,Food Standards Agency,26/10/2012,Travel UK ,Wine Standards,Capita Business Travel Ltd,LI467055,177.71,FSA TRAVEL CHGS FROM 28th SEPT to 12th OCT,DE21 6BF,Programme
Food Standards Agency,Food Standards Agency,26/10/2012,Subsistence UK,Wine Standards,Booking Services International Ltd,226056441,140,FSA CONF/HOTEL CHGS FROM 29th SEPT to 12th OCT,TA1 2PF,Programme
Food Standards Agency,Food Standards Agency,26/10/2012,Travel UK ,Central Operations Hub,Capita Business Travel Ltd,LI467055,"1,071.66",FSA TRAVEL CHGS FROM 28th SEPT to 12th OCT,DE21 6BF,Programme
Food Standards Agency,Food Standards Agency,26/10/2012,Car hire expenses (short term),Central Operations Hub,Capita Business Travel Ltd,LI467055,99.14,FSA TRAVEL CHGS FROM 28th SEPT to 12th OCT,DE21 6BF,Programme
Food Standards Agency,Food Standards Agency,26/10/2012,Subsistence UK,Central Operations Hub,Booking Services International Ltd,226056441,"3,616.30",FSA CONF/HOTEL CHGS FROM 29th SEPT to 12th OCT,TA1 2PF,Programme
Food Standards Agency,Food Standards Agency,26/10/2012,Conference and meeting facilities including accommodation,Central Operations Hub,Booking Services International Ltd,226056441,335.15,FSA CONF/HOTEL CHGS FROM 29th SEPT to 12th OCT,TA1 2PF,Programme
Food Standards Agency,Food Standards Agency,26/10/2012,Travel UK ,Chemical Risk Assessment Unit,Capita Business Travel Ltd,LI467055,147.9,FSA TRAVEL CHGS FROM 28th SEPT to 12th OCT,DE21 6BF,Admin
Food Standards Agency,Food Standards Agency,26/10/2012,International Travel,Chemical Risk Assessment Unit,Capita Business Travel Ltd,LI467055,193.75,FSA TRAVEL CHGS FROM 28th SEPT to 12th OCT,DE21 6BF,Admin
Food Standards Agency,Food Standards Agency,26/10/2012,Travel UK ,Contaminants Policy & Strategy Unit,Capita Business Travel Ltd,LI467055,30,FSA TRAVEL CHGS FROM 28th SEPT to 12th OCT,DE21 6BF,Admin
Food Standards Agency,Food Standards Agency,26/10/2012,International Travel,Novel Food Unit,Capita Business Travel Ltd,LI467055,505.25,FSA TRAVEL CHGS FROM 28th SEPT to 12th OCT,DE21 6BF,Admin
Food Standards Agency,Food Standards Agency,26/10/2012,Travel UK ,Food Production Branch,Capita Business Travel Ltd,LI467055,143.4,FSA TRAVEL CHGS FROM 28th SEPT to 12th OCT,DE21 6BF,Admin
Food Standards Agency,Food Standards Agency,26/10/2012,International Travel,Food Production Branch,Capita Business Travel Ltd,LI467055,444.58,FSA TRAVEL CHGS FROM 28th SEPT to 12th OCT,DE21 6BF,Admin
Food Standards Agency,Food Standards Agency,26/10/2012,International Travel,EU Regulatory Reform Branch,Capita Business Travel Ltd,LI467055,213.75,FSA TRAVEL CHGS FROM 28th SEPT to 12th OCT,DE21 6BF,Admin
Food Standards Agency,Food Standards Agency,26/10/2012,Travel UK ,Food Hygiene Policy Branch,Capita Business Travel Ltd,LI467055,86.8,FSA TRAVEL CHGS FROM 28th SEPT to 12th OCT,DE21 6BF,Admin
Food Standards Agency,Food Standards Agency,26/10/2012,International Travel,Food Hygiene Policy Branch,Capita Business Travel Ltd,LI467055,488.5,FSA TRAVEL CHGS FROM 28th SEPT to 12th OCT,DE21 6BF,Admin
Food Standards Agency,Food Standards Agency,26/10/2012,Travel UK ,Meat & Hygiene & TSE Policy Branch,Capita Business Travel Ltd,LI467055,108.8,FSA TRAVEL CHGS FROM 28th SEPT to 12th OCT,DE21 6BF,Admin
Food Standards Agency,Food Standards Agency,26/10/2012,Travel UK ,Animal Feed Branch,Capita Business Travel Ltd,LI467055,313.32,FSA TRAVEL CHGS FROM 28th SEPT to 12th OCT,DE21 6BF,Admin
Food Standards Agency,Food Standards Agency,26/10/2012,International Travel,Animal Feed Branch,Capita Business Travel Ltd,LI467055,784.25,FSA TRAVEL CHGS FROM 28th SEPT to 12th OCT,DE21 6BF,Admin
Food Standards Agency,Food Standards Agency,26/10/2012,Travel UK ,Allergens,Capita Business Travel Ltd,LI467055,161.9,FSA TRAVEL CHGS FROM 28th SEPT to 12th OCT,DE21 6BF,Admin
Food Standards Agency,Food Standards Agency,26/10/2012,Travel UK ,Additives,Capita Business Travel Ltd,LI467055,78.8,FSA TRAVEL CHGS FROM 28th SEPT to 12th OCT,DE21 6BF,Admin
Food Standards Agency,Food Standards Agency,26/10/2012,Travel UK ,Food Policy Strategy HoD,Capita Business Travel Ltd,LI467055,"4,731.96",FSA TRAVEL CHGS FROM 28th SEPT to 12th OCT,DE21 6BF,Admin
Food Standards Agency,Food Standards Agency,26/10/2012,Subsistence UK,European & International Strategy,Booking Services International Ltd,226056441,147.06,FSA CONF/HOTEL CHGS FROM 29th SEPT to 12th OCT,TA1 2PF,Admin
Food Standards Agency,Food Standards Agency,26/10/2012,Travel UK ,Planning and Performance,Capita Business Travel Ltd,LI467055,"1,317.80",FSA TRAVEL CHGS FROM 28th SEPT to 12th OCT,DE21 6BF,Admin
Food Standards Agency,Food Standards Agency,26/10/2012,Subsistence UK,Planning and Performance,Booking Services International Ltd,226056441,792.8,FSA CONF/HOTEL CHGS FROM 29th SEPT to 12th OCT,TA1 2PF,Admin
Food Standards Agency,Food Standards Agency,26/10/2012,Travel UK ,Food Policy Private Office,Capita Business Travel Ltd,LI467055,84.8,FSA TRAVEL CHGS FROM 28th SEPT to 12th OCT,DE21 6BF,Admin
Food Standards Agency,Food Standards Agency,26/10/2012,Travel UK ,Finance Director & Branch,Capita Business Travel Ltd,LI467055,"1,996.40",FSA TRAVEL CHGS FROM 28th SEPT to 12th OCT,DE21 6BF,Admin
Food Standards Agency,Food Standards Agency,26/10/2012,Subsistence UK,Finance Director & Branch,Booking Services International Ltd,226056441,153.6,FSA CONF/HOTEL CHGS FROM 29th SEPT to 12th OCT,TA1 2PF,Admin
Food Standards Agency,Food Standards Agency,26/10/2012,Travel UK ,HR,Capita Business Travel Ltd,LI467055,"4,716.70",FSA TRAVEL CHGS FROM 28th SEPT to 12th OCT,DE21 6BF,Admin
Food Standards Agency,Food Standards Agency,26/10/2012,Subsistence UK,HR,Booking Services International Ltd,226056441,567.2,FSA CONF/HOTEL CHGS FROM 29th SEPT to 12th OCT,TA1 2PF,Admin
Food Standards Agency,Food Standards Agency,26/10/2012,Travel UK ,Procurement,Capita Business Travel Ltd,LI467055,517.7,FSA TRAVEL CHGS FROM 28th SEPT to 12th OCT,DE21 6BF,Admin
Food Standards Agency,Food Standards Agency,26/10/2012,Subsistence UK,Procurement,Capita Business Travel Ltd,LI467055,"6,611.68",FSA TRAVEL CHGS FROM 28th SEPT to 12th OCT,DE21 6BF,Admin
Food Standards Agency,Food Standards Agency,26/10/2012,Subsistence UK,Procurement,Booking Services International Ltd,226056441,433.2,FSA CONF/HOTEL CHGS FROM 29th SEPT to 12th OCT,TA1 2PF,Admin
Food Standards Agency,Food Standards Agency,26/10/2012,Rates/contrib in lieu of rates,Security & Estates,London Borough Of Camden,68351658NOV12,"152,004.00",PO 407405 68351658 NOV BUSINESS RATES,WC1H 8NH,Admin
Food Standards Agency,Food Standards Agency,26/10/2012,Travel UK ,Security & Estates,Capita Business Travel Ltd,LI467055,263.5,FSA TRAVEL CHGS FROM 28th SEPT to 12th OCT,DE21 6BF,Admin
Food Standards Agency,Food Standards Agency,26/10/2012,Travel UK ,IT Information & Knowledge Management,Capita Business Travel Ltd,LI467055,555.5,FSA TRAVEL CHGS FROM 28th SEPT to 12th OCT,DE21 6BF,Admin
Food Standards Agency,Food Standards Agency,26/10/2012,Travel UK ,Internal Audit,Capita Business Travel Ltd,LI467055,318.9,FSA TRAVEL CHGS FROM 28th SEPT to 12th OCT,DE21 6BF,Admin
Food Standards Agency,Food Standards Agency,26/10/2012,Subsistence UK,Internal Audit,Booking Services International Ltd,226056441,473.5,FSA CONF/HOTEL CHGS FROM 29th SEPT to 12th OCT,TA1 2PF,Admin
Food Standards Agency,Food Standards Agency,26/10/2012,Subsistence UK,FSA Ops Cluster 21,Booking Services International Ltd,226056441,66,FSA CONF/HOTEL CHGS FROM 29th SEPT to 12th OCT,TA1 2PF,Programme
Food Standards Agency,Food Standards Agency,26/10/2012,Conference and meeting facilities including accommodation,FSA Ops Cluster 21,Booking Services International Ltd,226056441,143.75,FSA CONF/HOTEL CHGS FROM 29th SEPT to 12th OCT,TA1 2PF,Programme
Food Standards Agency,Food Standards Agency,30/10/2012,Project Programme expenditure,Contaminants Policy & Strategy Unit,C E F A S,8002231,"39,795.50",PO 400947 C2706 JUL-SEP 12,NR33 0HT,Programme
Food Standards Agency,Food Standards Agency,30/10/2012,Programme Evidence & Research Expenditure,Microbiological Food Safety Branch,Agri-Food & Biosciences Institute,INV06379,"34,284.00",PO 409040 MICROBIOLOGICAL SURVEY OF LISTERIA IN PRE PACKED MEALS,BT9 5PX,Programme
Food Standards Agency,Food Standards Agency,30/10/2012,Programme Evidence & Research Expenditure,Microbiological Food Safety Branch,Agri-Food & Biosciences Institute,INV06379,"6,856.80",PO 409040 MICROBIOLOGICAL SURVEY OF LISTERIA IN PRE PACKED MEALS,BT9 5PX,Programme
Food Standards Agency,Food Standards Agency,30/10/2012,Project Programme expenditure,Food Policy Strategy HoD,Amtec (Keane),20979,"91,550.00",PO 407948 EVIDENCE PROJ. C PHASE 1 + INTERIM REPORT,GU9 7HX,Programme
Food Standards Agency,Food Standards Agency,30/10/2012,Civil service pension administration,Finance Director & Branch,London Pensions Fund Authority,25-Oct-12,"138,333.33",PO 408024 RGFS/ACCOUNT 595,EC3N 4LP,Admin
